bitfinex-derivatives/quotes_ETHF0:USTF0_20250528
["timestamp","ask_amount","ask_price","bid_price","bid_amount"]
[1748456202756,1.2288478,2656.6,2656.4,3.693]
[1748456202951,2.6096278,2656.6,2656.5,18.03161]
[1748456203151,1.9814278,2656.6,2656.5,18.03161]
[1748456204652,0.75261,2656.5,2656.4,0.75262]
[1748456204859,0.75261,2656.5,2656.4,18.02862]
[1748456204860,2.10031,2656.5,2656.4,18.02862]
[1748456205555,2.10031,2656.5,2656.4,0.75262]
[1748456205858,1.3477,2656.5,2656.4,0.75262]
[1748456206564,1.3477,2656.5,2656.4,18.02562]
[1748456207366,0.0056478,2656.6,2656.5,0.75261]
[1748456207561,0.0056478,2656.6,2656.5,2.05111]
[1748456208258,1.3541478,2656.6,2656.5,2.05111]
[1748456209263,2.1067278,2656.6,2656.5,2.05111]
[1748456209763,1.3541478,2656.6,2656.5,2.05111]
[1748456209963,2.1067278,2656.6,2656.5,2.05111]
[1748456210466,2.1067278,2656.6,2656.5,18.01861]
[1748456210865,2.1067278,2656.6,2656.5,0.75261]
[1748456211165,0.75264,2656.5,2656.4,0.75261]
[1748456211355,2.09997908,2656.5,2656.4,18.01661]
[1748456211558,2.09997908,2656.5,2656.4,18.02561]
[1748456212360,2.09997908,2656.5,2656.0,0.7583778]
[1748456212361,0.75272,2656.1,2656.0,0.7583778]
[1748456212559,0.75269,2656.3,2656.2,0.75267]
[1748456212868,2.02539,2656.3,2656.2,0.75267]
[1748456213357,1.88175,2656.2,2655.7,17.288]
[1748456213564,0.7528,2655.9,2655.8,0.75278]
[1748456213962,2.0765,2655.9,2655.8,0.75278]
[1748456214671,1.3237,2655.9,2655.8,0.75278]
[1748456215270,2.07648,2655.9,2655.8,0.75278]
[1748456215465,2.72638,2655.9,2655.8,0.75278]
[1748456215865,0.75281,2655.8,2655.7,18.04082]
[1748456216165,2.01481,2655.8,2655.7,18.04082]
[1748456218569,0.75284,2655.7,2655.6,0.0056478]
[1748456218868,2.01484,2655.7,2655.6,17.2836478]
[1748456219066,2.01484,2655.7,2655.6,0.7585178]
[1748456220368,1.262,2655.7,2655.6,0.7585178]
[1748456220569,2.02909,2655.9,2655.8,0.75281]
[1748456220863,3.29629,2655.9,2655.8,0.75281]
[1748456223871,0.75281,2655.8,2655.7,2.04803]
[1748456224071,0.75284,2655.7,2655.6,0.0056478]
[1748456224466,0.75299,2655.2,2655.1,0.75296]
[1748456224673,0.75298,2655.3,2655.2,0.75295]
[1748456224870,0.75295,2655.3,2655.2,0.75295]
[1748456225070,3.2078,2655.4,2655.3,0.75295]
[1748456225271,0.75304,2655.0,2654.9,3.96082]
[1748456225467,0.75304,2655.0,2654.9,21.24082]
[1748456226068,0.75302,2655.1,2655.0,0.75301]
[1748456228168,0.75302,2655.1,2654.7,0.0056478]
[1748456228169,0.75309,2654.8,2654.7,0.0056478]
[1748456228580,3.96089,2654.8,2654.7,0.0056478]
[1748456230978,4.58379,2654.8,2654.7,0.0056478]
[1748456234877,4.58379,2654.8,2654.7,0.7587678]
[1748456235281,4.58379,2654.8,2654.7,0.0056478]
[1748456238683,9.58379,2654.8,2654.7,0.0056478]
[1748456239482,4.58379,2654.8,2654.7,0.0056478]
[1748456240280,5.24359,2654.8,2654.7,0.0056478]
[1748456242580,1.99389,2654.8,2654.7,0.0056478]
[1748456242776,0.1126,2654.9,2654.8,0.75309]
[1748456242981,3.2078,2655.6,2655.5,0.75289]
[1748456243183,1.2408,2655.8,2655.7,0.75284]
[1748456243481,0.75283,2655.8,2655.7,0.75282]
[1748456243681,10.01275,2656.1,2655.5,2.603]
[1748456243882,0.75285,2655.7,2655.6,0.75284]
[1748456244080,0.75282,2655.8,2655.7,0.75281]
[1748456244291,0.7584478,2655.9,2655.8,0.75281]
[1748456244677,0.0056478,2655.9,2655.8,0.75281]
[1748456245287,0.0056478,2655.9,2655.5,2.603]
[1748456245488,0.75285,2655.7,2655.6,0.75284]
[1748456245690,0.75283,2655.8,2655.7,0.75282]
[1748456246184,0.75287,2655.7,2655.6,0.75286]
[1748456246485,1.97193,2655.8,2655.7,0.75284]
[1748456246687,0.0056478,2655.9,2655.8,0.75281]
[1748456246986,0.0056478,2655.9,2655.8,2.04661]
[1748456247279,0.0056478,2655.9,2655.8,7.04661]
[1748456247883,3.2078,2656.8,2656.6,0.75256]
[1748456248083,3.2078,2656.8,2656.4,17.304]
[1748456248280,0.75259,2656.7,2656.6,0.75258]
[1748456248576,3.2078,2656.8,2656.7,0.75255]
[1748456249181,3.96033,2656.8,2656.7,0.75255]
[1748456249686,3.2078,2656.8,2656.7,0.75255]
[1748456249985,0.0056478,2657.0,2656.7,0.75255]
[1748456249986,0.0056478,2657.0,2656.9,0.7525]
[1748456250883,0.0056478,2657.0,2656.9,4.4555]
[1748456251091,0.0056478,2657.0,2656.9,5.0686]
[1748456252089,0.0056478,2657.0,2656.9,10.0686]
[1748456252280,0.75234,2657.5,2657.4,0.75233]
[1748456252689,0.75238,2657.4,2657.3,0.75237]
[1748456252988,0.75238,2657.4,2657.3,2.02157]
[1748456253386,3.2078,2657.6,2657.3,2.02157]
[1748456253387,3.2078,2657.6,2657.3,1.2692]
[1748456253580,0.75236,2657.4,2657.3,2.02156]
[1748456254392,0.75236,2657.4,2657.3,1.2692]
[1748456255287,3.09945,2657.5,2656.9,0.75249]
[1748456255489,0.75255,2656.7,2656.6,3.2078]
[1748456255689,0.75255,2656.7,2656.6,6.9098]
[1748456255892,0.75255,2656.7,2656.6,24.2158]
[1748456256088,0.75255,2656.7,2656.6,21.008]
[1748456256388,0.75255,2656.7,2656.6,21.76958]
[1748456256690,0.75255,2656.7,2656.6,22.2797]
[1748456256890,0.75255,2656.7,2656.6,22.2777]
[1748456257387,0.75255,2656.7,2656.6,22.2757]
[1748456257788,0.75255,2656.7,2656.6,23.02828]
[1748456258089,0.75255,2656.7,2656.6,22.2757]
[1748456259382,0.75254,2656.8,2656.7,0.75255]
[1748456259582,0.07463908,2657.0,2656.6,25.4835]
[1748456259781,0.07463908,2657.0,2656.9,0.7525]
[1748456260382,0.82710908,2657.0,2656.9,0.7525]
[1748456261998,0.82710908,2657.0,2656.9,21.7615]
[1748456262493,0.75253,2656.8,2656.7,18.6335]
[1748456263081,2.03703,2656.8,2656.7,18.6335]
[1748456265183,2.03703,2656.8,2656.7,19.38605]
[1748456266092,2.03703,2656.8,2656.7,18.6335]
[1748456266288,0.75258,2656.7,2656.5,0.0056478]
[1748456266486,2.05658,2656.7,2656.6,18.05456]
[1748456266686,2.05658,2656.7,2656.5,3.7066478]
[1748456266687,0.75258,2656.6,2656.5,0.0056478]
[1748456266887,2.05658,2656.6,2656.5,17.3066478]
[1748456267090,2.05658,2656.6,2656.5,0.0056478]
[1748456268098,2.05658,2656.6,2656.5,0.7582578]
[1748456269191,2.05658,2656.6,2656.5,0.0056478]
[1748456270798,2.05658,2656.6,2656.5,0.7582578]
[1748456271297,2.05658,2656.6,2656.5,0.0056478]
[1748456273896,5.26438,2656.6,2656.5,0.0056478]
[1748456275285,5.26438,2656.6,2655.4,3.2078]
[1748456275286,9.5118,2656.6,2655.4,3.2078]
[1748456275487,0.75289,2655.5,2655.4,3.2078]
[1748456275692,0.75292,2655.4,2655.3,1.2751]
[1748456275893,2.09932,2655.4,2655.3,2.02805]
[1748456276198,1.3464,2655.4,2655.3,2.02805]
[1748456276397,3.2078,2655.5,2655.4,0.75292]
[1748456276600,3.2078,2655.5,2655.4,2.08932]
[1748456277099,0.7585178,2655.6,2655.5,0.75289]
[1748456277297,0.7585178,2655.6,2655.5,1.97269]
[1748456279104,0.0056478,2655.6,2655.5,5.69269]
[1748456279796,0.0056478,2655.6,2655.5,23.01069]
[1748456279996,0.7585178,2655.6,2655.5,23.01069]
[1748456280399,0.0056478,2655.6,2655.5,23.01069]
[1748456280814,3.2078,2656.3,2656.2,0.7527]
[1748456281009,3.96047,2656.3,2656.2,0.7527]
[1748456281808,3.19368,2656.6,2656.1,2.5611]
[1748456281809,2.0648,2656.6,2656.5,0.75261]
[1748456282005,1.3122,2656.6,2656.5,0.75261]
[1748456282200,0.75257,2656.7,2656.6,0.75258]
[1748456282707,0.7526,2656.6,2656.5,0.75259]
[1748456283602,1.88147,2656.6,2656.1,4.4811]
[1748456283806,1.2787,2656.5,2656.1,18.6113]
[1748456284004,0.75267,2656.4,2656.3,0.75265]
[1748456284207,0.07463908,2656.8,2656.2,3.2078]
[1748456284408,0.75263,2656.5,2656.4,0.75262]
[1748456286212,0.75266,2656.4,2656.3,0.75265]
[1748456286510,0.7527,2656.2,2656.1,2.026]
[1748456286705,0.7527,2656.2,2656.1,23.076]
[1748456286906,2.17420908,2656.3,2656.2,0.7527]
[1748456287697,0.7527,2656.2,2656.1,4.9933]
[1748456287898,0.7527,2656.2,2656.1,1.2733]
[1748456288101,0.7527,2656.2,2656.1,18.5983]
[1748456288319,0.7527,2656.2,2656.1,18.5973]
[1748456288504,2.17421908,2656.3,2656.2,0.7527]
[1748456289009,2.17421908,2656.3,2656.2,2.044]
[1748456290207,0.7527,2656.2,2656.1,2.02601]
[1748456290408,2.0559,2656.2,2656.1,19.34301]
[1748456291203,0.07463908,2656.3,2656.2,0.7527]
[1748456291408,0.07463908,2656.3,2656.2,5.2956]
[1748456292210,0.07463908,2656.3,2656.2,10.2956]
[1748456294508,0.07463908,2656.3,2656.2,5.2956]
[1748456298213,0.82730908,2656.3,2656.2,26.3186]
[1748456298430,0.82730908,2656.3,2656.2,2.0878]
[1748456298722,0.7527,2656.2,2656.1,5.09502]
[1748456298906,1.9267,2656.2,2655.9,3.2078]
[1748456299215,0.75278,2655.9,2655.7,3.2078]
[1748456299420,2.06433,2655.8,2655.6,3.72]
[1748456299608,1.3115,2655.8,2655.7,18.06484]
[1748456299814,2.06431,2655.8,2655.7,18.06484]
[1748456300214,0.75284,2655.7,2655.6,3.72]
[1748456300415,2.67954,2655.7,2655.6,3.72]
[1748456300714,0.7529,2655.6,2655.5,17.312]
[1748456300912,0.75292,2655.4,2655.3,3.96075]
[1748456301114,0.75292,2655.4,2655.3,21.27475]
[1748456301517,0.75292,2655.4,2655.3,21.27473]
[1748456301818,0.75292,2655.4,2655.3,3.96073]
[1748456302120,0.75291,2655.5,2655.4,0.7529]
[1748456302316,1.3115,2655.6,2655.5,0.75289]
[1748456302524,3.96055,2656.0,2655.9,0.75278]
[1748456303719,0.75282,2655.9,2655.8,0.75279]
[1748456303920,2.06612,2655.9,2655.8,0.75279]
[1748456307520,0.75289,2655.5,2655.4,0.75289]
[1748456307719,0.75297,2655.3,2655.2,0.75296]
[1748456308216,0.75298,2655.2,2655.1,0.0056478]
[1748456308416,2.73318,2655.2,2655.1,0.0056478]
[1748456308620,2.73318,2655.2,2655.1,0.7586578]
[1748456309023,2.73318,2655.2,2655.1,0.0056478]
[1748456309428,0.75309,2654.8,2654.7,3.96091]
[1748456309731,0.75309,2654.8,2654.7,3.2078]
[1748456310024,0.75309,2654.9,2654.8,0.75308]
[1748456310215,2.08979,2654.9,2654.8,0.75308]
[1748456312123,1.3367,2654.9,2654.8,0.75308]
[1748456312322,3.2078,2655.1,2655.0,0.75304]
[1748456312524,0.75312,2654.8,2654.7,0.7531]
[1748456313621,2.05422,2654.8,2654.7,0.7531]
[1748456313832,2.69572,2654.8,2654.7,0.7531]
[1748456314330,1.9426,2654.8,2654.7,0.7531]
[1748456314929,2.69569,2654.8,2654.7,0.7531]
[1748456315323,0.75312,2654.7,2654.6,0.7587778]
[1748456315627,0.75312,2654.7,2654.6,0.0056478]
[1748456315628,2.05422,2654.7,2654.6,0.0056478]
[1748456316036,7.05422,2654.7,2654.6,0.0056478]
[1748456316330,7.05422,2654.7,2654.2,0.75323]
[1748456316331,0.75326,2654.3,2654.2,0.75323]
[1748456316724,4.5246,2654.5,2654.0,3.2078]
[1748456316926,5.2778,2654.5,2654.4,0.75321]
[1748456317127,2.07,2654.5,2654.4,0.75321]
[1748456317522,0.75323,2654.4,2654.3,0.75322]
[1748456317828,2.07003,2654.4,2654.3,0.75322]
[1748456319031,1.3168,2654.4,2654.3,0.75322]
[1748456319230,2.07001,2654.4,2654.3,0.75322]
[1748456319428,0.75323,2654.3,2654.2,0.7588978]
[1748456319622,0.75323,2654.3,2654.2,0.0056478]
[1748456319623,1.97623,2654.3,2654.2,0.0056478]
[1748456320820,1.97623,2654.3,2654.2,0.7589078]
[1748456321826,1.97623,2654.3,2654.2,0.0056478]
[1748456322028,1.97623,2654.3,2654.2,0.7589078]
[1748456322235,1.97623,2654.3,2654.2,0.0056478]
[1748456322432,1.97623,2654.3,2654.2,0.7589078]
[1748456323632,1.223,2654.3,2654.2,0.7589078]
[1748456323838,3.2078,2654.5,2654.4,0.75321]
[1748456324022,5.22188,2654.5,2654.4,0.75321]
[1748456324227,5.22188,2654.5,2654.3,0.75323]
[1748456324228,0.75323,2654.4,2654.3,0.75323]
[1748456324428,0.75323,2654.3,2654.2,0.0056478]
[1748456325133,0.75323,2654.3,2654.2,0.7589078]
[1748456325836,1.2609,2654.4,2654.3,0.75323]
[1748456325837,0.75321,2654.4,2654.3,0.75323]
[1748456326032,0.75321,2654.4,2654.3,1.99043]
[1748456327333,1.99171,2654.4,2654.3,1.99043]
[1748456327535,0.75323,2654.3,2654.2,0.0056478]
[1748456327736,2.65743,2654.3,2654.2,0.0056478]
[1748456328135,0.75335,2653.9,2653.8,0.6705]
[1748456328431,1.88345,2653.8,2653.4,3.2078]
[1748456328637,0.75354,2653.3,2653.2,0.75352]
[1748456328935,0.75355,2653.2,2653.1,3.96134]
[1748456329132,0.75354,2653.3,2653.2,0.75352]
[1748456329528,6.2271,2653.3,2652.9,0.0056478]
[1748456329730,0.7536,2653.0,2652.9,0.0056478]
[1748456330130,0.7536,2653.0,2652.9,0.7592778]
[1748456330337,1.9807,2653.1,2653.0,0.7536]
[1748456330537,1.2271,2653.1,2653.0,0.7536]
[1748456330836,1.2271,2653.1,2653.0,1.9979]
[1748456331032,1.2271,2653.1,2653.0,1.2443]
[1748456331234,1.98067,2653.1,2653.0,1.9979]
[1748456331431,1.2271,2653.1,2653.0,1.9979]
[1748456331832,0.7536,2653.0,2652.9,0.7592778]
[1748456332032,0.7536,2653.0,2652.9,0.0056478]
[1748456332730,0.75374,2652.6,2652.4,1.3028]
[1748456332931,1.2238,2652.5,2652.3,1.3139]
[1748456333137,1.97756,2652.5,2652.4,0.75377]
[1748456333938,0.75379,2652.4,2652.3,0.75378]
[1748456334128,1.2238,2652.4,2652.3,0.7538]
[1748456334438,1.97757,2652.4,2652.3,0.7538]
[1748456334840,0.7538,2652.3,2652.2,0.0056478]
[1748456335136,4.488,2652.3,2652.2,0.7594778]
[1748456336642,7.71449,2652.7,2652.6,0.75372]
[1748456336941,8.241,2652.7,2652.6,0.75372]
[1748456337241,4.488,2652.7,2652.6,0.75372]
[1748456337441,5.24169,2652.7,2652.6,0.75372]
[1748456338144,0.75374,2652.6,2652.5,0.75372]
[1748456338439,1.99374,2652.6,2652.5,0.75372]
[1748456339238,1.24,2652.6,2652.5,0.75372]
[1748456340345,1.99372,2652.6,2652.5,0.75372]
[1748456341742,1.24,2652.6,2652.5,0.75372]
[1748456342043,0.113,2652.7,2652.6,0.75372]
[1748456342847,0.113,2652.7,2652.6,2.65792]
[1748456344547,0.75372,2652.6,2652.5,0.07463908]
[1748456344850,2.05552,2652.6,2652.5,0.82838908]
[1748456347839,4.5807,2652.7,2652.5,0.82838908]
[1748456347840,0.113,2652.7,2652.6,0.75372]
[1748456348049,0.113,2652.7,2652.6,2.05812]
[1748456348242,0.113,2652.7,2652.6,3.39822]
[1748456348645,3.2078,2653.3,2653.2,0.75355]
[1748456349039,0.0056478,2653.4,2653.3,0.75352]
[1748456349446,1.3337478,2653.4,2653.3,0.75352]
[1748456351050,2.0872378,2653.4,2653.3,0.75352]
[1748456351548,1.3337478,2653.4,2653.3,0.75352]
[1748456352952,2.0872378,2653.4,2653.3,0.75352]
[1748456353152,1.3337478,2653.4,2653.3,0.75352]
[1748456353755,2.0872378,2653.4,2653.3,0.75352]
[1748456354451,1.3337478,2653.4,2653.3,0.75352]
[1748456357249,0.0056478,2653.4,2653.3,0.75352]
[1748456357457,0.0056478,2653.4,2653.3,9.50652]
[1748456357753,0.0056478,2653.4,2653.3,5.75352]
[1748456358055,0.0056478,2653.4,2653.3,19.41922]
[1748456358247,0.7591378,2653.4,2653.3,19.41922]
[1748456358447,0.0056478,2653.4,2653.3,19.41922]
[1748456359258,0.0056478,2653.4,2653.3,22.62702]
[1748456359652,0.0056478,2653.4,2653.3,22.70165908]
[1748456360658,0.0056478,2653.4,2653.3,22.62702]
[1748456361752,0.0056478,2653.4,2653.3,22.70165908]
[1748456363653,0.0056478,2653.4,2653.3,22.62702]
[1748456366859,0.0056478,2653.4,2653.3,22.61502]
[1748456367364,1.3110478,2653.4,2653.3,22.61502]
[1748456367661,1.3110478,2653.4,2653.1,0.6405]
[1748456367851,1.88394,2653.1,2652.6,3.74231235]
[1748456368051,0.7538,2652.3,2652.2,0.0056478]
[1748456368462,3.96159,2652.4,2652.2,0.0056478]
[1748456368760,1.3341,2652.3,2652.2,0.7594778]
[1748456369159,2.0879,2652.3,2652.2,0.7594778]
[1748456371265,1.3341,2652.3,2652.2,0.7594778]
[1748456374959,1.3341,2652.3,2652.2,0.83411688]
[1748456376064,3.2078,2652.7,2652.6,0.75372]
[1748456377163,3.96149,2652.7,2652.6,0.75372]
[1748456379257,0.75377,2652.4,2652.3,1.3424]
[1748456379569,0.75377,2652.4,2652.2,0.08028688]
[1748456379570,3.2078,2652.4,2652.2,0.08028688]
[1748456379761,3.96159,2652.4,2652.3,0.7538]
[1748456380571,4.60629,2652.4,2652.3,0.7538]
[1748456380865,3.8525,2652.4,2652.3,0.7538]
[1748456381362,3.8525,2652.4,2652.3,2.0765]
[1748456382272,0.1131,2652.5,2652.4,0.75377]
[1748456382466,0.1131,2652.5,2652.4,2.70937]
[1748456383766,0.6447,2653.1,2653.0,0.7536]
[1748456383966,1.39827,2653.1,2653.0,0.7536]
[1748456387077,0.6447,2653.1,2653.0,0.7536]
[1748456387263,3.2078,2653.2,2653.1,0.75357]
[1748456388570,0.0056478,2653.4,2653.3,0.75352]
[1748456388772,0.7591378,2653.4,2653.3,0.75352]
[1748456389375,0.0056478,2653.4,2653.3,0.75352]
[1748456390467,0.7591378,2653.4,2653.3,0.75352]
[1748456393774,0.7591678,2653.4,2653.3,18.12552]
[1748456394476,0.0056478,2653.4,2653.3,0.75352]
[1748456394676,0.0056478,2653.4,2653.3,18.12152]
[1748456398272,0.0056478,2653.4,2653.3,19.35132]
[1748456400886,0.0056478,2653.4,2653.1,0.642]
[1748456401072,0.75357,2653.1,2653.0,3.2078]
[1748456401274,0.75364,2652.9,2652.7,3.8459]
[1748456401579,0.75364,2652.9,2652.8,18.13666]
[1748456402177,0.7536,2653.1,2653.0,0.75358]
[1748456402384,0.75363,2653.0,2652.9,0.75361]
[1748456402685,1.88397,2653.1,2652.7,3.2078]
[1748456402870,1.38356,2652.9,2652.8,18.13464]
[1748456403682,0.7537,2652.7,2652.6,0.75368]
[1748456403878,0.6299,2652.9,2652.7,0.75369]
[1748456403879,1.42447,2652.8,2652.7,0.75369]
[1748456404073,0.6708,2652.8,2652.7,0.75369]
[1748456404675,0.6299,2652.9,2652.8,0.75366]
[1748456405278,0.6299,2652.9,2652.8,18.13566]
[1748456405679,1.38353,2652.9,2652.8,18.13466]
[1748456405875,0.6299,2652.9,2652.8,18.13466]
[1748456406686,3.2134478,2653.4,2653.3,0.75352]
[1748456407480,3.9669478,2653.4,2653.1,0.07463908]
[1748456407785,3.9669478,2653.4,2653.3,0.75352]
[1748456408294,3.9669378,2653.4,2653.3,0.75352]
[1748456410585,0.75355,2653.3,2653.2,0.75352]
[1748456410792,0.75355,2653.3,2653.2,18.13452]
[1748456411391,3.2134478,2653.4,2653.3,0.75352]
[1748456411693,3.9669378,2653.4,2653.3,0.75352]
[1748456412697,5.3142378,2653.4,2653.3,0.75352]
[1748456413597,0.75352,2653.3,2653.2,18.13454]
[1748456413797,2.10082,2653.3,2653.2,18.13454]
[1748456413997,1.3473,2653.3,2652.9,4.3828]
[1748456414192,3.9614,2653.1,2653.0,0.75359]
[1748456414398,3.9614,2653.1,2653.0,18.14159]
[1748456414590,0.75363,2653.0,2652.9,0.75362]
[1748456414789,0.75366,2652.9,2652.8,0.75363]
[1748456414995,2.68442,2653.0,2652.9,0.75363]
[1748456415295,1.38652,2653.0,2652.9,0.75363]
[1748456419002,0.7537,2652.8,2652.7,0.75366]
[1748456419197,3.9615,2652.8,2652.7,18.12766]
[1748456420396,3.9615,2652.8,2652.7,0.75366]
[1748456421199,3.2078,2652.8,2652.7,0.75366]
[1748456421407,3.96146,2652.8,2652.7,2.65566]
[1748456422097,3.96146,2652.8,2652.7,20.02166]
[1748456422898,3.96146,2652.8,2652.7,18.11966]
[1748456424806,3.96146,2652.8,2652.7,0.75366]
[1748456425001,0.75374,2652.6,2652.5,0.75371]
[1748456425311,0.7538,2652.3,2652.2,0.0056478]
[1748456425513,3.9616,2652.3,2652.2,0.0056478]
[1748456425809,3.9616,2652.3,2652.2,0.7594778]
[1748456426003,3.2078,2652.3,2652.2,0.7594778]
[1748456426204,3.2078,2652.3,2652.2,2.1079778]
[1748456426403,0.7538,2652.4,2652.3,0.75378]
[1748456427105,0.6109,2652.5,2652.3,0.75378]
[1748456427299,0.6109,2652.5,2652.4,0.75377]
[1748456427499,1.36464,2652.5,2652.4,0.75377]
[1748456427805,0.75377,2652.5,2652.4,0.75375]
[1748456428211,4.57243,2652.6,2652.5,0.75374]
[1748456428411,3.2078,2652.6,2652.5,0.75374]
[1748456429004,3.2078,2652.6,2652.5,2.10224]
[1748456431308,3.96152,2652.6,2652.5,2.10224]
[1748456431509,3.96152,2652.6,2652.5,19.46824]
[1748456431709,3.2078,2652.6,2652.5,19.46824]
[1748456432318,3.96152,2652.6,2652.5,0.75374]
[1748456432523,5.28202,2652.6,2652.5,18.11674]
[1748456432711,5.28202,2652.6,2652.4,0.75376]
[1748456432712,0.75379,2652.5,2652.4,0.75376]
[1748456432912,0.7538,2652.3,2652.2,0.0056478]
[1748456433215,3.9616,2652.3,2652.2,0.7594778]
[1748456433613,5.2821,2652.3,2652.2,0.7594778]
[1748456434213,5.2821,2652.3,2652.2,0.0056478]
[1748456435817,5.2821,2652.3,2652.2,0.7594778]
[1748456436713,5.2821,2652.3,2652.2,0.0056478]
[1748456436921,5.2821,2652.3,2652.2,0.7594778]
[1748456437324,3.2078,2652.3,2652.2,0.7594778]
[1748456438125,4.4492,2652.3,2652.2,0.7594778]
[1748456438627,1.2421,2652.6,2652.5,0.75374]
[1748456438924,1.2421,2652.6,2652.5,0.82837908]
[1748456439819,1.2421,2652.6,2652.5,18.20637908]
[1748456440319,1.99582,2652.6,2652.5,18.20637908]
[1748456440519,1.99582,2652.6,2652.5,0.07463908]
[1748456441227,1.99582,2652.6,2652.5,0.82837908]
[1748456441618,1.99582,2652.6,2652.5,0.07463908]
[1748456442721,1.99582,2652.6,2652.5,0.82837908]
[1748456445622,1.99582,2652.6,2652.5,0.07463908]
[1748456446025,1.99582,2652.6,2652.5,0.82837908]
[1748456447025,1.99582,2652.6,2652.5,0.07463908]
[1748456449530,5.20362,2652.6,2652.5,0.07463908]
[1748456451534,6.29736136,2652.6,2652.5,0.07463908]
[1748456452632,6.29736136,2652.6,2652.2,0.0056478]
[1748456452633,0.7538,2652.3,2652.2,0.0056478]
[1748456452931,7.7076,2652.3,2652.2,0.0056478]
[1748456453328,8.8014462,2652.3,2652.2,0.0056478]
[1748456453629,0.75411,2651.3,2651.2,0.75407]
[1748456454028,0.75411,2651.2,2651.1,2.01873]
[1748456454330,1.2176,2651.3,2651.2,0.75411]
[1748456454627,1.2176,2651.3,2651.2,2.10611]
[1748456454833,1.97169,2651.3,2651.2,1.352]
[1748456455229,1.97169,2651.3,2651.2,2.10611]
[1748456457435,1.97169,2651.3,2651.2,0.75411]
[1748456458837,0.75411,2651.2,2651.1,20.71703]
[1748456459034,2.08631,2651.2,2651.1,19.38973]
[1748456459529,2.08631,2651.2,2651.1,1.2646]
[1748456459739,0.75414,2651.1,2651.0,0.0056478]
[1748456459932,5.89614,2651.1,2651.0,0.0056478]
[1748456460834,0.75428,2650.6,2650.5,0.6328]
[1748456461237,5.22698,2650.7,2650.6,0.75428]
[1748456461541,3.2078,2650.7,2650.6,0.75428]
[1748456461936,3.96206,2650.7,2650.6,0.75428]
[1748456462337,3.2078,2650.7,2650.6,0.75428]
[1748456463238,3.2078,2651.1,2651.0,0.75413]
[1748456463436,3.96195,2651.1,2651.0,0.75413]
[1748456463647,0.7542,2651.0,2650.9,0.75418]
[1748456463842,0.7542,2651.0,2650.9,1.38908]
[1748456464144,3.96196,2651.1,2651.0,0.75417]
[1748456464532,0.75417,2651.0,2650.9,18.0199]
[1748456464731,2.05757,2651.0,2650.9,18.7741]
[1748456464937,2.05757,2651.0,2650.9,0.7542]
[1748456465441,1.3034,2651.0,2650.9,0.7542]
[1748456465841,3.96196,2651.1,2651.0,0.75417]
[1748456467332,3.2078,2651.1,2651.0,0.75417]
[1748456468036,3.96196,2651.1,2651.0,18.16717]
[1748456470145,3.96196,2651.1,2651.0,18.16817]
[1748456470744,3.96196,2651.1,2651.0,0.75417]
[1748456471445,3.96196,2651.1,2651.0,2.05647]
[1748456471646,3.2078,2651.1,2651.0,2.05647]
[1748456472643,3.2078,2651.1,2651.0,7.05647]
[1748456476049,3.2078,2651.1,2651.0,2.05647]
[1748456476245,3.96194,2651.1,2651.0,2.05647]
[1748456476446,3.96194,2651.1,2651.0,19.47347]
[1748456476747,3.2078,2651.1,2651.0,2.05647]
[1748456476951,3.2078,2651.1,2651.0,19.47547]
[1748456479148,3.2078,2651.4,2651.3,0.75409]
[1748456479949,3.2078,2651.4,2651.3,2.03169]
[1748456480143,3.96186,2651.4,2651.3,2.03169]
[1748456480351,0.75409,2651.3,2651.2,0.6312]
[1748456480551,2.01649,2651.3,2651.2,0.6312]
[1748456482150,2.01649,2651.3,2651.2,1.38531]
[1748456484746,3.2078,2651.4,2651.3,0.75409]
[1748456484950,3.2078,2651.4,2651.3,1.98039]
[1748456486460,0.1187478,2651.5,2651.4,0.75406]
[1748456486651,0.1187478,2651.5,2651.4,5.18816]
[1748456486853,0.1187478,2651.5,2651.4,10.18816]
[1748456488163,0.1187478,2651.5,2651.4,5.18816]
[1748456488361,0.1187478,2651.5,2651.4,19.41036]
[1748456489253,0.1187478,2651.5,2651.4,1.98036]
[1748456489458,2.1000778,2651.5,2651.4,19.41336]
[1748456490459,1.3460478,2651.5,2651.4,19.41336]
[1748456491057,0.1187478,2651.5,2651.4,19.41336]
[1748456491754,0.1187478,2651.5,2651.4,24.41336]
[1748456491955,0.1187478,2651.5,2651.4,27.62116]
[1748456492462,0.1187478,2651.5,2651.4,10.18816]
[1748456492665,0.1187478,2651.5,2651.4,31.39516]
[1748456493369,0.1187478,2651.5,2651.4,26.39516]
[1748456495771,0.1187478,2651.5,2651.4,26.46979908]
[1748456497365,0.11336872,2651.5,2651.4,26.46979908]
[1748456499870,0.11336872,2651.5,2651.4,9.03879908]
[1748456500073,0.86739872,2651.5,2651.4,2.05499908]
[1748456500275,0.86739872,2651.5,2651.4,0.82869908]
[1748456500867,5.31329872,2651.5,2651.4,17.48763908]
[1748456501180,5.31329872,2651.5,2651.4,18.24169908]
[1748456501770,5.31329872,2651.5,2651.4,0.82869908]
[1748456501972,5.31329872,2651.5,2651.4,0.07463908]
[1748456504994,5.20019872,2651.5,2651.4,0.07463908]
[1748456506085,5.20019872,2651.5,2651.4,0.82869908]
[1748456506682,5.20019872,2651.5,2651.4,0.07463908]
[1748456509490,46.00019872,2651.5,2651.4,0.07463908]
[1748456510794,5.20019872,2651.5,2651.4,0.07463908]
[1748456512596,5.20019872,2651.5,2651.4,0.82869908]
[1748456512796,5.20019872,2651.5,2651.4,0.07463908]
[1748456516192,1.99239872,2651.5,2651.4,0.07463908]
[1748456516490,5.20019872,2651.5,2651.4,0.07463908]
[1748456516797,5.20019872,2651.5,2651.4,0.82869908]
[1748456518292,4.44616872,2651.5,2651.4,0.82869908]